[Event "Elite Hotels Open 2024"]
[Site "Elite Stadshotellet, Kungsgatan 6, Vaxjo, Sweden"]
[Date "2024.02.11"]
[Round "8.15"]
[White "Eklund, Joel"]
[Black "Lilliehook, Victor"]
[Result "1-0"]
[TimeControl "15 minutes + 5 seconds per move from move one (Round 1 - 4) / 90 minutes + 30 seconds per move from move one (Round 5 - 8)"]
[WhiteFideId "1705288"]
[BlackFideId "1752103"]
[WhiteElo "2258"]
[BlackElo "2042"]

1. c4 {[%clk 01:30:52]} {[%emt 00:00:06]} e6 {[%clk 01:30:39]} {[%emt
00:00:21]} 2. g3 {[%clk 01:30:56]} {[%emt 00:00:27]} Nf6 {[%clk 01:29:30]}
{[%emt 00:01:39]} 3. Bg2 {[%clk 01:31:15]} {[%emt 00:00:11]} d5 {[%clk
01:29:04]} {[%emt 00:00:57]} 4. Nf3 {[%clk 01:31:27]} {[%emt 00:00:17]} dxc4
{[%clk 01:27:32]} {[%emt 00:02:02]} 5. Na3 {[%clk 01:31:26]} {[%emt 00:00:30]}
Bxa3 {[%clk 01:25:14]} {[%emt 00:02:49]} 6. bxa3 {[%clk 01:31:45]} {[%emt
00:00:11]} O-O {[%clk 01:22:32]} {[%emt 00:03:11]} 7. Bb2 {[%clk 01:31:54]}
{[%emt 00:00:22]} Nbd7 {[%clk 01:21:08]} {[%emt 00:01:53]} 8. Rc1 {[%clk
01:30:48]} {[%emt 00:01:37]} c5 {[%clk 01:16:57]} {[%emt 00:04:41]} 9. O-O
{[%clk 01:24:22]} {[%emt 00:06:57]} Qc7 {[%clk 01:11:17]} {[%emt 00:06:10]} 10.
a4 {[%clk 01:18:15]} {[%emt 00:06:37]} b6 {[%clk 01:05:01]} {[%emt 00:06:46]}
11. Rxc4 {[%clk 01:12:35]} {[%emt 00:06:11]} Ba6 {[%clk 01:02:19]} {[%emt
00:03:11]} 12. Rc2 {[%clk 00:57:48]} {[%emt 00:15:17]} Rac8 {[%clk 00:58:52]}
{[%emt 00:03:57]} 13. d3 {[%clk 00:55:40]} {[%emt 00:02:38]} Nd5 {[%clk
00:56:02]} {[%emt 00:03:20]} 14. Qa1 {[%clk 00:53:28]} {[%emt 00:02:42]} f6
{[%clk 00:46:56]} {[%emt 00:09:36]} 15. Ba3 {[%clk 00:48:23]} {[%emt 00:05:35]}
Rfe8 {[%clk 00:44:51]} {[%emt 00:02:34]} 16. Qb2 {[%clk 00:41:18]} {[%emt
00:07:35]} Qc6 {[%clk 00:38:41]} {[%emt 00:06:34]} 17. Nd4 {[%clk 00:29:16]}
{[%emt 00:12:37]} Qd6 {[%clk 00:27:34]} {[%emt 00:11:37]} 18. Nb5 {[%clk
00:27:31]} {[%emt 00:02:15]} Bxb5 {[%clk 00:25:21]} {[%emt 00:02:43]} 19. axb5
{[%clk 00:27:42]} {[%emt 00:00:19]} Qe5 {[%clk 00:23:53]} {[%emt 00:01:57]} 20.
Qb3 {[%clk 00:27:49]} {[%emt 00:00:24]} Rc7 {[%clk 00:17:40]} {[%emt 00:06:43]}
21. Rc4 {[%clk 00:25:37]} {[%emt 00:02:42]} Qxe2 {[%clk 00:13:03]} {[%emt
00:05:07]} 22. Re4 {[%clk 00:24:20]} {[%emt 00:01:47]} Qh5 {[%clk 00:04:36]}
{[%emt 00:08:57]} 23. Rxe6 {[%clk 00:24:34]} {[%emt 00:00:17]} Rxe6 {[%clk
00:03:50]} {[%emt 00:01:15]} 24. Bxd5 {[%clk 00:24:52]} {[%emt 00:00:12]} Nf8
{[%clk 00:03:53]} {[%emt 00:00:27]} 25. Bxe6+ {[%clk 00:24:27]} {[%emt
00:00:55]} Nxe6 {[%clk 00:04:22]} {[%emt 00:00:01]} 26. Qxe6+ {[%clk 00:24:48]}
{[%emt 00:00:09]} Qf7 {[%clk 00:04:49]} {[%emt 00:00:02]} 27. Qxf7+ {[%clk
00:23:09]} {[%emt 00:02:09]} Kxf7 {[%clk 00:05:18]} 28. Rd1 {[%clk 00:23:26]}
{[%emt 00:00:13]} Rd7 {[%clk 00:05:33]} {[%emt 00:00:16]} 29. Bb2 {[%clk
00:23:50]} {[%emt 00:00:06]} a6 {[%clk 00:03:18]} {[%emt 00:02:46]} 30. a4
{[%clk 00:23:07]} {[%emt 00:01:12]} axb5 {[%clk 00:03:41]} {[%emt 00:00:07]} 31.
axb5 {[%clk 00:23:31]} {[%emt 00:00:05]} c4 {[%clk 00:03:46]} {[%emt 00:00:25]}
32. Kf1 {[%clk 00:19:32]} {[%emt 00:04:29]} cxd3 {[%clk 00:02:52]} {[%emt
00:01:24]} 33. Bc3 {[%clk 00:19:04]} {[%emt 00:00:58]} Rd5 {[%clk 00:01:28]}
{[%emt 00:01:53]} 34. Rb1 {[%clk 00:17:18]} {[%emt 00:02:17]} g5 {[%clk
00:01:11]} {[%emt 00:00:47]} 35. Ke1 {[%clk 00:16:50]} {[%emt 00:00:58]} g4
{[%clk 00:01:05]} {[%emt 00:00:36]} 36. Kd2 {[%clk 00:16:54]} {[%emt 00:00:25]}
Ke6 {[%clk 00:00:38]} {[%emt 00:00:57]} 37. Rb4 {[%clk 00:17:11]} {[%emt
00:00:14]} h5 {[%clk 00:00:40]} {[%emt 00:00:28]} 38. Bd4 {[%clk 00:17:07]}
{[%emt 00:00:34]} Rd6 {[%clk 00:00:38]} {[%emt 00:00:32]} 39. Kxd3 {[%clk
00:16:58]} {[%emt 00:00:39]} Kd7 {[%clk 00:01:02]} {[%emt 00:00:40]} 40. Ke4
{[%clk 00:16:57]} {[%emt 00:00:56]} 1-0

[Event "Elite Hotels Open 2024"]
[Site "Elite Stadshotellet, Kungsgatan 6, Vaxjo, Sweden"]
[Date "2024.02.11"]
[Round "8.16"]
[White "Eriksson, Kristian"]
[Black "Sevastianov, Andrii"]
[Result "1/2-1/2"]
[TimeControl "15 minutes + 5 seconds per move from move one (Round 1 - 4) / 90 minutes + 30 seconds per move from move one (Round 5 - 8)"]
[WhiteFideId "1705172"]
[BlackFideId "1730240"]
[WhiteElo "2035"]
[BlackElo "2164"]

1. e4 {[%clk 01:30:55]} {[%emt 00:00:03]} e6 {[%clk 01:30:50]} {[%emt
00:00:11]} 2. d4 {[%clk 01:30:39]} {[%emt 00:00:46]} d5 {[%clk 01:31:11]}
{[%emt 00:00:09]} 3. Nc3 {[%clk 01:31:01]} {[%emt 00:00:07]} Nf6 {[%clk
01:31:33]} {[%emt 00:00:07]} 4. e5 {[%clk 01:29:07]} {[%emt 00:02:25]} Nfd7
{[%clk 01:31:46]} {[%emt 00:00:17]} 5. Nf3 {[%clk 01:28:59]} {[%emt 00:00:38]}
c5 {[%clk 01:31:36]} {[%emt 00:00:39]} 6. dxc5 {[%clk 01:28:37]} {[%emt
00:00:53]} Bxc5 {[%clk 01:30:49]} {[%emt 00:01:17]} 7. Bd3 {[%clk 01:28:29]}
{[%emt 00:00:37]} Nc6 {[%clk 01:28:16]} {[%emt 00:03:03]} 8. Bf4 {[%clk
01:28:04]} {[%emt 00:00:55]} Qb6 {[%clk 01:17:57]} {[%emt 00:10:50]} 9. O-O
{[%clk 01:26:51]} {[%emt 00:01:42]} a6 {[%clk 01:11:54]} {[%emt 00:06:34]} 10.
a3 {[%clk 01:19:37]} {[%emt 00:07:44]} Be7 {[%clk 01:03:59]} {[%emt 00:08:24]}
11. b4 {[%clk 01:05:18]} {[%emt 00:14:50]} f6 {[%clk 00:46:22]} {[%emt
00:18:07]} 12. Na4 {[%clk 01:00:32]} {[%emt 00:05:15]} Qd8 {[%clk 00:44:28]}
{[%emt 00:02:25]} 13. exf6 {[%clk 00:59:20]} {[%emt 00:01:42]} Bxf6 {[%clk
00:44:29]} {[%emt 00:00:28]} 14. Ng5 {[%clk 00:53:42]} {[%emt 00:06:08]} Nf8
{[%clk 00:44:41]} {[%emt 00:00:18]} 15. Rb1 {[%clk 00:39:35]} {[%emt 00:14:37]}
Bxg5 {[%clk 00:41:01]} {[%emt 00:04:11]} 16. Qh5+ {[%clk 00:39:33]} {[%emt
00:00:31]} g6 {[%clk 00:41:25]} {[%emt 00:00:07]} 17. Qxg5 {[%clk 00:39:36]}
{[%emt 00:00:27]} Qxg5 {[%clk 00:41:46]} {[%emt 00:00:08]} 18. Bxg5 {[%clk
00:40:00]} {[%emt 00:00:06]} b5 {[%clk 00:40:43]} {[%emt 00:01:33]} 19. Nc5
{[%clk 00:35:34]} {[%emt 00:04:56]} Kf7 {[%clk 00:33:31]} {[%emt 00:07:43]} 20.
f4 {[%clk 00:34:49]} {[%emt 00:01:14]} Nd7 {[%clk 00:32:13]} {[%emt 00:01:48]}
21. Nxe6 {[%clk 00:27:40]} {[%emt 00:07:39]} Kxe6 {[%clk 00:30:53]} {[%emt
00:01:51]} 22. f5+ {[%clk 00:27:17]} {[%emt 00:00:53]} gxf5 {[%clk 00:29:15]}
{[%emt 00:02:08]} 23. Rxf5 {[%clk 00:18:31]} {[%emt 00:09:17]} Kd6 {[%clk
00:22:38]} {[%emt 00:07:07]} 24. Re1 {[%clk 00:15:28]} {[%emt 00:03:32]} Nde5
{[%clk 00:21:45]} {[%emt 00:01:23]} 25. Rf6+ {[%clk 00:14:30]} {[%emt
00:01:27]} Be6 {[%clk 00:21:16]} {[%emt 00:00:59]} 26. Bf4 {[%clk 00:12:34]}
{[%emt 00:02:27]} Raf8 {[%clk 00:17:57]} {[%emt 00:03:49]} 27. Rxf8 {[%clk
00:12:58]} {[%emt 00:00:07]} Rxf8 {[%clk 00:18:13]} {[%emt 00:00:14]} 28. Bg3
{[%clk 00:13:24]} {[%emt 00:00:04]} Rf7 {[%clk 00:17:26]} {[%emt 00:01:14]} 29.
a4 {[%clk 00:12:46]} {[%emt 00:01:11]} Bf5 {[%clk 00:13:41]} {[%emt 00:04:15]}
30. axb5 {[%clk 00:12:34]} {[%emt 00:00:43]} Bxd3 {[%clk 00:14:02]} {[%emt
00:00:07]} 31. cxd3 {[%clk 00:12:25]} {[%emt 00:00:40]} axb5 {[%clk 00:12:43]}
{[%emt 00:01:49]} 32. d4 {[%clk 00:12:47]} {[%emt 00:00:07]} Nxb4 {[%clk
00:10:44]} {[%emt 00:02:30]} 33. Bxe5+ {[%clk 00:08:05]} {[%emt 00:05:13]} Ke6
{[%clk 00:07:45]} {[%emt 00:03:25]} 34. Bg3+ {[%clk 00:06:32]} {[%emt
00:02:04]} Ke5 {[%emt 00:01:06]} 1/2-1/2